fUSD/lending_fUSD_20240424
["ID","MTS","AMOUNT","RATE_DAILY","PERIOD"]
[323448767,1713993044616,-500.0,0.00011505,2]
[323448768,1713993044626,-9725.75,0.00011505,2]
[323448769,1713993044636,-500.0,0.00011505,2]
[323448770,1713993044648,-500.0,0.00011505,2]
[323448771,1713993044661,-503.93,0.00011505,2]
[323448772,1713993044839,-500.0,0.00011505,2]
[323448773,1713993044873,-500.0,0.00011505,2]
[323448774,1713993044884,-500.0,0.00011505,2]
[323448775,1713993044894,-500.0,0.00011505,2]
[323448776,1713993044903,-500.0,0.00011505,2]
[323448777,1713993044913,-312.99,0.00011505,2]
[323448778,1713993044922,-500.0,0.00011505,2]
[323448779,1713993044931,-500.0,0.00011505,2]
[323448780,1713993044941,-500.0,0.00011505,2]
[323448781,1713993044950,-1529.17,0.00011505,2]
[323448782,1713993044959,-500.0,0.00011505,2]
[323448783,1713993044968,-500.0,0.00011505,2]
[323448784,1713993044978,-2644.73,0.00011505,2]
[323448785,1713993044987,-500.0,0.00011505,2]
[323448786,1713993044996,-500.0,0.00011505,2]
[323448787,1713993045006,-500.0,0.00011505,2]
[323448788,1713993045016,-500.0,0.00011505,2]
[323448789,1713993045025,-500.0,0.00011505,2]
[323448790,1713993045036,-500.0,0.00011505,2]
[323448791,1713993045045,-500.0,0.00011505,2]
[323448792,1713993045055,-500.0,0.00011505,2]
[323448793,1713993045064,-500.0,0.00011505,2]
[323448794,1713993045074,-500.0,0.00011505,2]
[323448795,1713993045084,-500.0,0.00011505,2]
[323448796,1713993045093,-500.0,0.00011505,2]
[323448797,1713993045102,-500.0,0.00011505,2]
[323448798,1713993045112,-492.06,0.00011505,2]
[323448799,1713993045121,-500.0,0.00011505,2]
[323448800,1713993045131,-500.0,0.00011505,2]
[323448801,1713993045140,-500.0,0.00011505,2]
[323448802,1713993045150,-500.0,0.00011505,2]
[323448803,1713993045159,-500.0,0.00011505,2]
[323448804,1713993045169,-500.0,0.00011505,2]
[323448805,1713993045178,-500.0,0.00011505,2]
[323448806,1713993045189,-500.0,0.00011505,2]
[323448807,1713993045198,-500.0,0.00011505,2]
[323448808,1713993045207,-500.0,0.00011505,2]
[323448809,1713993045217,-500.0,0.00011505,2]
[323448810,1713993045226,-500.0,0.00011505,2]
[323448811,1713993045235,-500.0,0.00011505,2]
[323448812,1713993045244,-500.0,0.00011505,2]
[323448813,1713993045253,-500.0,0.00011505,2]
[323448814,1713993045263,-500.0,0.00011505,2]
[323448815,1713993045272,-500.0,0.00011505,2]
[323448816,1713993045282,-500.0,0.00011505,2]
[323448817,1713993045291,-500.0,0.00011505,2]
[323448818,1713993045300,-500.0,0.00011505,2]
[323448819,1713993045309,-580.54,0.00011505,2]
[323448820,1713993045318,-2931.38,0.00011505,2]
[323448821,1713993045327,-500.0,0.00011505,2]
[323448822,1713993045336,-500.0,0.00011505,2]
[323448823,1713993045346,-500.0,0.00011505,2]
[323448824,1713993045355,-500.0,0.00011505,2]
[323448825,1713993045364,-500.0,0.00011505,2]
[323448826,1713993045373,-500.0,0.00011505,2]
[323448827,1713993045383,-500.0,0.00011505,2]
[323448828,1713993045393,-500.0,0.00011505,2]
[323448829,1713993045403,-500.0,0.00011505,2]
[323448830,1713993045413,-500.0,0.00011505,2]
[323448831,1713993045423,-500.0,0.00011505,2]
[323448832,1713993045432,-500.0,0.00011505,2]
[323448833,1713993045442,-3493.05,0.00011505,2]
[323448834,1713993045451,-500.0,0.00011505,2]
[323448835,1713993045461,-500.0,0.00011505,2]
[323448836,1713993045471,-500.0,0.00011505,2]
[323448837,1713993045480,-500.0,0.00011505,2]
[323448838,1713993045489,-500.0,0.00011505,2]
[323448839,1713993045498,-500.0,0.00011505,2]
[323448840,1713993045508,-37650.41,0.00011505,2]
[323448841,1713993045517,-500.0,0.00011505,2]
[323448842,1713993045526,-500.0,0.00011505,2]
[323448843,1713993045536,-500.0,0.00011505,2]
[323448844,1713993045545,-500.0,0.00011505,2]
[323448845,1713993045554,-500.0,0.00011505,2]
[323448846,1713993045564,-500.0,0.00011505,2]
[323448847,1713993045573,-267.91,0.00011506,2]
[323448848,1713993045582,-531.24,0.00011506,2]
[323448849,1713993045591,-259.51,0.00011506,2]
[323448850,1713993045601,-327.33,0.00011506,2]
[323448851,1713993045610,-505.31253715,0.00011506,2]
[323448852,1713993045620,-249.5,0.00011506,2]
[323448853,1713993045629,-500.0,0.00011506,2]
[323448854,1713993045641,-215.62,0.00011506,2]
[323448855,1713993045651,-570.22179289,0.00011506,2]
[323448856,1713993045661,-626.94,0.00011506,2]
[323448857,1713993045670,-426.81,0.00011506,2]
[323448858,1713993045680,-447.43,0.00011506,2]
[323448859,1713993045690,-447.1,0.00011506,2]
[323448860,1713993045700,-289.58,0.00011506,2]
[323448861,1713993045711,-341.56,0.00011506,2]
[323448862,1713993045722,-500.0,0.00011506,2]
[323448863,1713993045732,-421.84,0.00011506,2]
[323448864,1713993045742,-311.92,0.00011506,2]
[323448865,1713993045753,-254.29,0.00011506,2]
[323448866,1713993045762,-478.96,0.00011506,2]
[323448867,1713993045772,-500.0,0.00011506,2]
[323448868,1713993045783,-500.0,0.00011506,2]
[323448869,1713993045794,-480.07414344,0.00011506,2]
[323448870,1713993045805,-500.0,0.00011506,2]
[323448871,1713993045814,-500.0,0.00011506,2]
[323448872,1713993045824,-615.56,0.00011506,2]
[323448873,1713993045835,-411.4,0.00011506,2]
[323448874,1713993045845,-500.0,0.00011506,2]
[323448875,1713993045856,-610.9,0.00011506,2]
[323448876,1713993045865,-500.0,0.00011506,2]
[323448877,1713993045875,-381.5,0.00011506,2]
[323448878,1713993045884,-500.0,0.00011506,2]
[323448879,1713993045894,-488.15,0.00011506,2]
[323448880,1713993045903,-175.53,0.00011516,2]
[323448881,1713993045913,-1000.0,0.00011639,2]
[323448882,1713993045923,-500.0,0.00011778,2]
[323448883,1713993045933,-500.0,0.00011778,2]
[323448884,1713993045943,-2316.88,0.00011778,2]
[323448885,1713993045952,-422.74,0.00011778,2]
[323448886,1713993045962,-500.0,0.00011778,2]
[323448887,1713993045971,-500.0,0.00011778,2]
[323448888,1713993045982,-500.0,0.00011778,2]
[323448889,1713993045993,-536.56,0.00011778,2]
[323448890,1713993046002,-500.0,0.00011778,2]
[323448891,1713993046012,-500.0,0.00011778,2]
[323448892,1713993046021,-500.0,0.00011778,2]
[323448893,1713993046030,-322.16,0.00011778,2]
[323448894,1713993046039,-500.0,0.00011778,2]
[323448895,1713993046050,-500.0,0.00011778,2]
[323448896,1713993046059,-500.0,0.00011778,2]
[323448897,1713993046070,-500.0,0.00011778,2]
[323448898,1713993046079,-500.0,0.00011778,2]
[323448899,1713993046088,-500.0,0.00011778,2]
[323448900,1713993046098,-500.0,0.00011778,2]
[323448901,1713993046108,-500.0,0.00011778,2]
[323448902,1713993046119,-355.42,0.00011778,2]
[323448903,1713993046131,-2803.54,0.00011778,2]
[323448904,1713993046142,-500.0,0.00011778,2]
[323448905,1713993046151,-500.0,0.00011778,2]
[323448906,1713993046160,-500.0,0.00011778,2]
[323448907,1713993046170,-500.0,0.00011778,2]
[323448908,1713993046179,-500.0,0.00011778,2]
[323448909,1713993046188,-500.0,0.00011778,2]
[323448910,1713993046197,-671.07,0.00011778,2]
[323448911,1713993046207,-860.45,0.00011778,2]
[323448912,1713993046216,-500.0,0.00011778,2]
[323448914,1713993046225,-500.0,0.00011778,2]
[323448916,1713993046234,-1249.54,0.00011778,2]
[323448918,1713993046244,-8489.62,0.00011778,2]
[323448920,1713993046253,-500.0,0.00011778,2]
[323448922,1713993046262,-223.14,0.00011778,2]
[323448924,1713993046271,-392.38,0.00011778,2]
[323448926,1713993046280,-636.26,0.00011778,2]
[323448928,1713993046290,-500.0,0.00011778,2]
[323448930,1713993046299,-500.0,0.00011778,2]
[323448932,1713993046308,-614.7,0.00011778,2]
[323448933,1713993046318,-490.42,0.00011778,2]
[323448934,1713993046327,-500.0,0.00011778,2]
[323448935,1713993046338,-286.55,0.00011779,2]
[323448936,1713993046347,-500.0,0.00011779,2]
[323448937,1713993046357,-500.0,0.00011779,2]
[323448938,1713993046368,-201.4,0.00011779,2]
[323448939,1713993046378,-500.0,0.00011779,2]
[323448940,1713993046388,-276.26,0.00011779,2]
[323448941,1713993046398,-361.18,0.00011779,2]
[323448942,1713993046407,-169.21,0.00011779,2]
[323448943,1713993046416,-305.53,0.00011779,2]
[323448944,1713993046425,-500.0,0.00011779,2]
[323448945,1713993046434,-500.0,0.00011779,2]
[323448946,1713993046443,-383.82,0.00011779,2]
[323448947,1713993046453,-192.15,0.00011779,2]
[323448948,1713993046462,-263.78,0.00011779,2]
[323448949,1713993046472,-228.04,0.00011779,2]
[323448950,1713993046482,-228.87,0.00011779,2]
[323448951,1713993046491,-150.0,0.00011779,2]
[323448952,1713993046502,-331.6,0.00011779,2]
[323448953,1713993046511,-265.25,0.00011779,2]
[323448954,1713993046522,-495.98,0.00011779,2]
[323448955,1713993046531,-613.14,0.00011779,2]
[323448956,1713993046540,-500.0,0.00011779,2]
[323448957,1713993046549,-500.0,0.00011779,2]
[323448958,1713993046559,-275.5,0.00011779,2]
[323448959,1713993046568,-382.01,0.00011779,2]
[323448960,1713993046579,-292.57,0.00011779,2]
[323448961,1713993046589,-425.67,0.00011779,2]
[323448962,1713993046598,-276.39,0.00011779,2]
[323448963,1713993046607,-208.98,0.00011779,2]
[323448964,1713993046617,-500.0,0.00011779,2]
[323448965,1713993046626,-473.38,0.00011779,2]
[323448966,1713993046637,-174.87,0.00011779,2]
[323448967,1713993046648,-330.32,0.00011779,2]
[323448968,1713993046657,-500.0,0.00011779,2]
[323448969,1713993046666,-309.22,0.00011779,2]
[323448970,1713993046675,-342.63,0.00011779,2]
[323448971,1713993046685,-500.0,0.00011779,2]
[323448972,1713993046694,-500.0,0.00011779,2]
[323448973,1713993046703,-475.48,0.00011779,2]
[323448974,1713993046712,-500.0,0.00011779,2]
[323448975,1713993046722,-500.0,0.00011779,2]
[323448976,1713993046732,-500.0,0.00011779,2]
[323448977,1713993046742,-500.0,0.00011779,2]
[323448979,1713993046751,-256.24,0.00011779,2]
[323448980,1713993046760,-500.0,0.00011779,2]
[323448982,1713993046770,-236.18,0.00011779,2]
[323448984,1713993046779,-9725.75,0.00011779,2]
[323448987,1713993046790,-500.0,0.00011779,2]
[323448989,1713993046802,-500.0,0.00011779,2]
[323448991,1713993046811,-500.0,0.00011779,2]
[323448992,1713993046820,-500.0,0.00011779,2]
[323448993,1713993046829,-539.07,0.00011779,2]
[323448994,1713993046838,-500.0,0.00011779,2]
[323448995,1713993046847,-500.0,0.00011779,2]
[323448996,1713993046857,-500.0,0.00011779,2]
[323448997,1713993046867,-500.0,0.00011779,2]
[323448998,1713993046877,-1529.17,0.00011779,2]
[323448999,1713993046888,-500.0,0.00011779,2]
[323449000,1713993046898,-500.0,0.00011779,2]
[323449001,1713993046909,-2644.73,0.00011779,2]
[323449002,1713993046919,-500.0,0.00011779,2]
[323449003,1713993046929,-500.0,0.00011779,2]
[323449004,1713993046938,-500.0,0.00011779,2]
[323449005,1713993046947,-500.0,0.00011779,2]
[323449006,1713993046957,-500.0,0.00011779,2]
[323449007,1713993046966,-500.0,0.00011779,2]
[323449008,1713993046975,-251.4,0.00011779,2]
[323449009,1713993046985,-500.0,0.00011779,2]
[323449010,1713993046994,-500.0,0.00011779,2]
[323449011,1713993047003,-500.0,0.00011779,2]
[323449012,1713993047012,-183.24,0.00011779,2]
[323449013,1713993047022,-218.7,0.00011779,2]
[323449014,1713993047031,-500.0,0.00011779,2]
[323449015,1713993047041,-500.0,0.00011779,2]
[323449016,1713993047051,-500.0,0.00011779,2]
[323449017,1713993047060,-232.48,0.00011779,2]
[323449018,1713993047069,-500.0,0.00011779,2]
[323449019,1713993047079,-500.0,0.00011779,2]
[323449020,1713993047088,-500.0,0.00011779,2]
[323449021,1713993047097,-501.26,0.00011779,2]
[323449022,1713993047106,-500.0,0.00011779,2]
[323449023,1713993047115,-500.0,0.00011779,2]
[323449024,1713993047125,-500.0,0.00011779,2]
[323449025,1713993047134,-500.0,0.00011779,2]
[323449026,1713993047144,-500.0,0.00011779,2]
[323449027,1713993047154,-162.13,0.00011779,2]
[323449028,1713993047166,-500.0,0.00011779,2]
[323449029,1713993047175,-2931.38,0.00011779,2]
[323449030,1713993047184,-500.0,0.00011779,2]
[323449031,1713993047241,-500.0,0.00011779,2]
[323449032,1713993047250,-228.44,0.00011779,2]
[323449033,1713993047259,-500.0,0.00011779,2]
[323449034,1713993047269,-500.0,0.00011779,2]
[323449035,1713993047278,-500.0,0.00011779,2]
[323449036,1713993047286,-500.0,0.00011779,2]
[323449037,1713993047295,-500.0,0.00011779,2]
[323449038,1713993047304,-184.62,0.00011779,2]
[323449039,1713993047313,-500.0,0.00011779,2]
[323449040,1713993047322,-427.78,0.00011779,2]
[323449041,1713993047330,-294.12,0.00011779,2]
[323449042,1713993047339,-3493.05,0.00011779,2]
[323449043,1713993047348,-500.0,0.00011779,2]
[323449044,1713993047357,-500.0,0.00011779,2]
[323449045,1713993047366,-169.52,0.00011779,2]
[323449046,1713993047375,-500.0,0.00011779,2]
[323449047,1713993047384,-500.0,0.00011779,2]
[323449048,1713993047394,-37650.41,0.00011779,2]
[323449049,1713993047405,-242.97,0.00011779,2]
[323449050,1713993047416,-500.0,0.00011779,2]
[323449051,1713993047426,-223.62,0.00011779,2]
[323449052,1713993047435,-500.0,0.00011779,2]
[323449053,1713993047444,-429.23,0.00011779,2]
[323449054,1713993047454,-498.52,0.0001178,2]
[323449055,1713993047464,-626.94,0.0001178,2]
[323449056,1713993047473,-500.0,0.0001178,2]
[323449057,1713993047482,-152.3,0.0001178,2]
[323449058,1713993047492,-500.0,0.0001178,2]
[323449059,1713993047501,-500.0,0.0001178,2]
[323449060,1713993047510,-588.81,0.0001178,2]
[323449061,1713993047519,-500.0,0.0001178,2]
[323449062,1713993047528,-583.73,0.0001178,2]
[323449063,1713993047539,-500.0,0.0001178,2]
[323449064,1713993047549,-409.12011988,0.00012,2]
[323449065,1713993047559,-2750.0,0.00012,2]
[323449066,1713993047568,-764.3448685,0.00012012,2]
[323449067,1713993047577,-208.62,0.00012033,2]
[323449068,1713993047588,-500.0,0.00012052,2]
[323449069,1713993047597,-500.0,0.00012052,2]
[323449070,1713993047606,-2316.88,0.00012052,2]
[323449071,1713993047615,-500.0,0.00012052,2]
[323449072,1713993047624,-500.0,0.00012052,2]
[323449073,1713993047634,-413.26,0.00012052,2]
[323449074,1713993047649,-536.56,0.00012052,2]
[323449075,1713993047659,-500.0,0.00012052,2]
[323449076,1713993047668,-500.0,0.00012052,2]
[323449077,1713993047678,-210.32,0.00012052,2]
[323449078,1713993047689,-500.0,0.00012052,2]
[323449079,1713993047699,-500.0,0.00012052,2]
[323449080,1713993047708,-500.0,0.00012052,2]
[323449081,1713993047718,-440.6,0.00012052,2]
[323449082,1713993047727,-500.0,0.00012052,2]
[323449083,1713993047737,-500.0,0.00012052,2]
[323449084,1713993047746,-500.0,0.00012052,2]
[323449085,1713993047755,-500.0,0.00012052,2]
[323449086,1713993047764,-2803.54,0.00012052,2]
[323449087,1713993047773,-500.0,0.00012052,2]
[323449088,1713993047784,-500.0,0.00012052,2]
[323449089,1713993047793,-500.0,0.00012052,2]
[323449090,1713993047802,-171.78,0.00012052,2]
[323449091,1713993047811,-500.0,0.00012052,2]
[323449092,1713993047821,-671.07,0.00012052,2]
[323449093,1713993047831,-860.45,0.00012052,2]
[323449094,1713993047840,-500.0,0.00012052,2]
[323449095,1713993047850,-500.0,0.00012052,2]
[323449096,1713993047860,-1249.54,0.00012052,2]
[323449097,1713993047869,-8489.62,0.00012052,2]
[323449098,1713993047877,-500.0,0.00012052,2]
[323449099,1713993047886,-192.82,0.00012052,2]
[323449100,1713993047898,-500.0,0.00012052,2]
[323449101,1713993047907,-500.0,0.00012052,2]
[323449102,1713993047916,-500.0,0.00012053,2]
[323449103,1713993047925,-320.17,0.00012053,2]
[323449104,1713993047933,-500.0,0.00012053,2]
[323449105,1713993047942,-381.15,0.00012053,2]
[323449106,1713993047952,-500.0,0.00012053,2]
[323449107,1713993047961,-150.0,0.00012053,2]
[323449108,1713993047971,-331.06,0.00012053,2]
[323449109,1713993047980,-500.0,0.00012053,2]
[323449110,1713993047989,-500.0,0.00012053,2]
[323449111,1713993048000,-500.0,0.00012053,2]
[323449112,1713993048010,-500.0,0.00012053,2]
[323449113,1713993048019,-500.0,0.00012053,2]
[323449114,1713993048029,-500.0,0.00012053,2]
[323449115,1713993048038,-500.0,0.00012053,2]
[323449116,1713993048057,-500.0,0.00012053,2]
[323449117,1713993048066,-500.0,0.00012053,2]
[323449118,1713993048075,-9725.75,0.00012053,2]
[323449119,1713993048087,-500.0,0.00012053,2]
[323449120,1713993048098,-500.0,0.00012053,2]
[323449121,1713993048107,-500.0,0.00012053,2]
[323449122,1713993048116,-500.0,0.00012053,2]
[323449123,1713993048125,-500.0,0.00012053,2]
[323449124,1713993048135,-500.0,0.00012053,2]
[323449125,1713993048147,-500.0,0.00012053,2]
[323449126,1713993048156,-500.0,0.00012053,2]
[323449127,1713993048165,-1529.17,0.00012053,2]
[323449128,1713993048175,-500.0,0.00012053,2]
[323449129,1713993048184,-500.0,0.00012053,2]
[323449130,1713993048193,-2644.73,0.00012053,2]
[323449131,1713993048202,-500.0,0.00012053,2]
[323449132,1713993048211,-500.0,0.00012053,2]
[323449133,1713993048220,-500.0,0.00012053,2]
[323449134,1713993048229,-500.0,0.00012053,2]
[323449135,1713993048238,-500.0,0.00012053,2]
[323449136,1713993048246,-500.0,0.00012053,2]
[323449137,1713993048255,-500.0,0.00012053,2]
[323449138,1713993048264,-500.0,0.00012053,2]
[323449139,1713993048273,-500.0,0.00012053,2]
[323449140,1713993048283,-500.0,0.00012053,2]
[323449141,1713993048292,-545.24,0.00012053,2]
[323449142,1713993048301,-500.0,0.00012053,2]
[323449143,1713993048310,-500.0,0.00012053,2]
[323449144,1713993048319,-395.32,0.00012053,2]
[323449145,1713993048328,-500.0,0.00012053,2]
[323449146,1713993048338,-500.0,0.00012053,2]
[323449147,1713993048347,-500.0,0.00012053,2]
[323449148,1713993048355,-500.0,0.00012053,2]
[323449149,1713993048364,-353.0,0.00012053,2]
[323449150,1713993048373,-500.0,0.00012053,2]
[323449151,1713993048383,-500.0,0.00012053,2]
[323449152,1713993048393,-2931.38,0.00012053,2]
[323449153,1713993048402,-475.74,0.00012053,2]
[323449154,1713993048411,-500.0,0.00012053,2]
[323449155,1713993048420,-500.0,0.00012053,2]
[323449156,1713993048430,-500.0,0.00012053,2]
[323449157,1713993048439,-509.86,0.00012053,2]
[323449158,1713993048448,-500.0,0.00012053,2]
[323449159,1713993048457,-554.0,0.00012053,2]
[323449160,1713993048466,-181.32,0.00012053,2]
[323449161,1713993048475,-3493.05,0.00012053,2]
[323449162,1713993048485,-500.0,0.00012053,2]
[323449163,1713993048494,-500.0,0.00012053,2]
[323449164,1713993048503,-212.44,0.00012053,2]
[323449165,1713993048512,-37650.41,0.00012053,2]
[323449166,1713993048521,-500.0,0.00012053,2]
[323449167,1713993048531,-372.74,0.00012053,2]
[323449168,1713993048541,-626.94,0.00012054,2]
[323449169,1713993048550,-342.90936806,0.00012054,2]
[323449170,1713993048559,-500.0,0.00012054,2]
[323449171,1713993048569,-500.0,0.00012054,2]
[323449172,1713993048579,-500.0,0.00012054,2]
[323449173,1713993048588,-403.09,0.00012054,2]
[323449174,1713993048597,-5000.0,0.00012113,2]
[323449175,1713993048607,-20989.28,0.00012164,2]
[323449176,1713993048616,-5000.0,0.0001219,2]
[323449177,1713993048625,-500.0,0.000122,4]
[323449178,1713993048636,-1141.75,0.00012204,2]
[323449179,1713993048648,-25000.0,0.0001221,2]
[323449180,1713993048658,-37702.0,0.00012227,2]
[323449181,1713993048667,-5000.0,0.00012255,2]
[323449182,1713993048677,-5000.0,0.00012257,2]
[323449183,1713993048686,-5000.0,0.00012284,2]
[323449184,1713993048696,-604.4,0.00012285,2]
[323449185,1713993048705,-1000.0,0.000123,4]
[323449186,1713993048716,-180.06,0.0001232,2]
[323449187,1713993048725,-500.0,0.00012326,2]
[323449188,1713993048734,-290.34,0.00012326,2]
[323449189,1713993048743,-2316.88,0.00012326,2]
[323449190,1713993048752,-500.0,0.00012326,2]
[323449191,1713993048762,-500.0,0.00012326,2]
[323449192,1713993048771,-536.56,0.00012326,2]
[323449193,1713993048780,-609.38,0.00012326,2]
[323449194,1713993048790,-500.0,0.00012326,2]
[323449195,1713993048799,-500.0,0.00012326,2]
[323449196,1713993048809,-500.0,0.00012326,2]
[323449197,1713993048818,-500.0,0.00012326,2]
[323449198,1713993048827,-500.0,0.00012326,2]
[323449199,1713993048837,-500.0,0.00012326,2]
[323449200,1713993048846,-500.0,0.00012326,2]
[323449201,1713993048855,-500.0,0.00012326,2]
[323449202,1713993048866,-2803.54,0.00012326,2]
[323449203,1713993048876,-500.0,0.00012326,2]
[323449204,1713993048886,-500.0,0.00012326,2]
[323449205,1713993048896,-553.34,0.00012326,2]
[323449206,1713993048905,-500.0,0.00012326,2]
[323449207,1713993048915,-671.07,0.00012326,2]
[323449208,1713993048925,-860.45,0.00012326,2]
[323449209,1713993048934,-500.0,0.00012326,2]
[323449210,1713993048943,-500.0,0.00012326,2]
[323449211,1713993048953,-1249.54,0.00012326,2]
[323449212,1713993048963,-8489.62,0.00012326,2]
[323449213,1713993048972,-573.07,0.00012326,2]
[323449214,1713993048981,-192.66,0.00012326,2]
[323449215,1713993048991,-500.0,0.00012326,2]
[323449216,1713993049001,-500.0,0.00012327,2]
[323449217,1713993049011,-310.75,0.00012327,2]
[323449218,1713993049019,-601.33,0.00012327,2]
[323449219,1713993049030,-150.0,0.00012327,2]
[323449220,1713993049040,-500.0,0.00012327,2]
[323449221,1713993049050,-500.0,0.00012327,2]
[323449222,1713993049059,-500.0,0.00012327,2]
[323449223,1713993049068,-299.47078949,0.00012327,2]
[323449224,1713993049078,-522.32,0.00012327,2]
[323449225,1713993049087,-426.21,0.00012327,2]
[323449226,1713993049096,-546.42,0.00012327,2]
[323449227,1713993049105,-551.26,0.00012327,2]
[323449228,1713993049114,-576.75549782,0.00012327,2]
[323449229,1713993049123,-500.0,0.00012327,2]
[323449230,1713993049132,-9725.75,0.00012327,2]
[323449231,1713993049142,-500.0,0.00012327,2]
[323449232,1713993049151,-500.0,0.00012327,2]
[323449233,1713993049161,-500.0,0.00012327,2]
[323449234,1713993049170,-353.67,0.00012327,2]
[323449235,1713993049180,-500.0,0.00012327,2]
[323449236,1713993049189,-500.0,0.00012327,2]
[323449237,1713993049197,-500.0,0.00012327,2]
[323449238,1713993049207,-615.42,0.00012327,2]
[323449239,1713993049216,-1529.17,0.00012327,2]
[323449240,1713993049225,-500.0,0.00012327,2]
[323449241,1713993049234,-500.0,0.00012327,2]
[323449242,1713993049244,-2644.73,0.00012327,2]
[323449243,1713993049253,-615.86,0.00012327,2]
[323449244,1713993049262,-500.0,0.00012327,2]
[323449245,1713993049272,-500.0,0.00012327,2]
[323449246,1713993049280,-500.0,0.00012327,2]
[323449247,1713993049289,-500.0,0.00012327,2]
[323449248,1713993049298,-500.0,0.00012327,2]
[323449249,1713993049307,-500.0,0.00012327,2]
[323449250,1713993049316,-483.32,0.00012327,2]
[323449251,1713993049325,-500.0,0.00012327,2]
[323449252,1713993049334,-500.0,0.00012327,2]
[323449253,1713993049343,-536.36,0.00012327,2]
[323449254,1713993049352,-409.24,0.00012327,2]
[323449255,1713993049361,-500.0,0.00012327,2]
[323449256,1713993049370,-500.0,0.00012327,2]
[323449257,1713993049379,-500.0,0.00012327,2]
[323449258,1713993049388,-507.6,0.00012327,2]
[323449259,1713993049399,-517.08,0.00012327,2]
[323449260,1713993049408,-2931.38,0.00012327,2]
[323449261,1713993049417,-462.86,0.00012327,2]
[323449262,1713993049426,-557.76,0.00012327,2]
[323449263,1713993049435,-500.0,0.00012327,2]
[323449264,1713993049445,-500.0,0.00012327,2]
[323449265,1713993049454,-3493.05,0.00012327,2]
[323449266,1713993049463,-492.72,0.00012327,2]
[323449267,1713993049472,-500.0,0.00012327,2]
[323449268,1713993049481,-37650.41,0.00012327,2]
[323449269,1713993049491,-467.64,0.00012327,2]
[323449270,1713993049500,-517.0,0.00012328,2]
[323449271,1713993049510,-949.0,0.00012328,2]
[323449272,1713993049519,-626.94,0.00012328,2]
[323449273,1713993049529,-403.08,0.00012328,2]
[323449274,1713993049538,-313.86,0.00012328,2]
[323449275,1713993049547,-490.32205634,0.00012328,2]
[323449276,1713993049556,-2410.13,0.00012332,2]
[323449277,1713993049566,-5000.0,0.0001234,2]
[323449278,1713993049575,-10000.0,0.00012361,2]
[323449279,1713993049585,-1500.0,0.000124,4]
[323449280,1713993049594,-2892.8,0.00012413,2]
[323449281,1713993049603,-2602.63,0.00012419,2]
[323449282,1713993049612,-2500.0,0.0001243,2]
[323449283,1713993049621,-3047.55,0.00012431,2]